fUST/lending_fUST_20250624
["ID","MTS","AMOUNT","RATE_DAILY","PERIOD"]
[367275587,1750726243738,-477.08,0.00019834,2]
[367275588,1750726243747,-460.0,0.00019834,2]
[367275589,1750726243756,-460.0,0.00019834,2]
[367275590,1750726243765,-166.76932862,0.00019834,2]
[367275591,1750726243774,-1154.07,0.00019834,2]
[367275592,1750726243783,-613.63,0.00019834,2]
[367275593,1750726243792,-460.0,0.00019834,2]
[367275594,1750726243801,-2122.3,0.00019834,2]
[367275595,1750726243810,-1036.93,0.00019834,2]
[367275596,1750726243819,-460.0,0.00019834,2]
[367275597,1750726243828,-664.47,0.00019834,2]
[367275598,1750726243837,-827.74,0.00019834,2]
[367275599,1750726243846,-2820.01,0.00019834,2]
[367275600,1750726243855,-460.0,0.00019834,2]
[367275601,1750726243864,-571.98,0.00019834,2]
[367275602,1750726243874,-460.0,0.00019834,2]
[367275603,1750726243883,-2277.68,0.00019834,2]
[367275604,1750726243892,-460.0,0.00019835,2]
[367275605,1750726243901,-460.0,0.00019835,2]
[367275606,1750726243910,-477.16,0.00019835,2]
[367275607,1750726243919,-460.0,0.00019835,2]
[367275608,1750726243928,-460.0,0.00019835,2]
[367275609,1750726243937,-460.0,0.00019835,2]
[367275610,1750726243946,-460.0,0.00019835,2]
[367275611,1750726243955,-390.30701164,0.00019835,2]
[367275612,1750726243964,-460.0,0.00019835,2]
[367275613,1750726243973,-460.0,0.00019835,2]
[367275614,1750726243982,-460.0,0.00019835,2]
[367275615,1750726243991,-460.0,0.00019835,2]
[367275616,1750726244001,-460.0,0.00019835,2]
[367275617,1750726244009,-460.0,0.00019835,2]
[367275618,1750726244018,-460.0,0.00019835,2]
[367275619,1750726244027,-460.0,0.00019835,2]
[367275620,1750726244037,-460.0,0.00019835,2]
[367275621,1750726244046,-679.41,0.00019835,2]
[367275622,1750726244055,-460.0,0.00019835,2]
[367275623,1750726244064,-1004.08,0.00019835,2]
[367275624,1750726244074,-765.94,0.00019835,2]
[367275625,1750726244083,-460.0,0.00019835,2]
[367275626,1750726244092,-460.0,0.00019835,2]
[367275627,1750726244101,-460.0,0.00019835,2]
[367275628,1750726244110,-460.0,0.00019835,2]
[367275629,1750726244118,-460.0,0.00019835,2]
[367275630,1750726244128,-460.0,0.00019835,2]
[367275631,1750726244137,-573.67,0.00019835,2]
[367275632,1750726244147,-460.0,0.00019835,2]
[367275633,1750726244156,-460.0,0.00019835,2]
[367275634,1750726244165,-510.55,0.00019835,2]
[367275635,1750726244178,-641.45,0.00019835,2]
[367275636,1750726244189,-460.0,0.00019835,2]
[367275637,1750726244199,-460.0,0.00019835,2]
[367275638,1750726244208,-460.0,0.00019835,2]
[367275639,1750726244218,-460.0,0.00019835,2]
[367275640,1750726244228,-460.0,0.00019835,2]
[367275641,1750726244238,-792.7,0.00019835,2]
[367275642,1750726244247,-558.92,0.00019835,2]
[367275643,1750726244257,-273.97,0.00019835,2]
[367275644,1750726244267,-744.72,0.00019835,2]
[367275645,1750726244277,-460.0,0.00019835,2]
[367275646,1750726244286,-238.05,0.00019835,2]
[367275647,1750726244295,-460.0,0.00019835,2]
[367275648,1750726244304,-635.78,0.00019835,2]
[367275649,1750726244314,-6285.8,0.00019835,2]
[367275650,1750726244323,-773.11,0.00019835,2]
[367275651,1750726244332,-460.0,0.00019835,2]
[367275652,1750726244341,-460.0,0.00019835,2]
[367275653,1750726244351,-460.0,0.00019835,2]
[367275654,1750726244360,-686.65,0.00019835,2]
[367275655,1750726244370,-460.0,0.00019835,2]
[367275656,1750726244379,-902.81,0.00019835,2]
[367275657,1750726244388,-508.84,0.00019835,2]
[367275658,1750726244397,-460.0,0.00019836,2]
[367275659,1750726244407,-460.0,0.00019836,2]
[367275660,1750726244416,-460.0,0.00019836,2]
[367275661,1750726244425,-460.0,0.00019836,2]
[367275662,1750726244435,-460.0,0.00019836,2]
[367275663,1750726244444,-391.17,0.00019836,2]
[367275664,1750726244454,-460.0,0.00019836,2]
[367275665,1750726244463,-542.15,0.00019836,2]
[367275666,1750726244472,-460.0,0.00019836,2]
[367275667,1750726244481,-601.66,0.00019836,2]
[367275668,1750726244490,-460.0,0.00019836,2]
[367275669,1750726244500,-460.0,0.00019836,2]
[367275670,1750726244508,-460.0,0.00019836,2]
[367275671,1750726244518,-2475.36,0.00019836,2]
[367275672,1750726244527,-219.69041136,0.00019836,2]
[367275673,1750726244536,-460.0,0.00019836,2]
[367275674,1750726244545,-923.78,0.00019836,2]
[367275675,1750726244555,-460.0,0.00019836,2]
[367275676,1750726244564,-746.18,0.00019836,2]
[367275677,1750726244573,-460.0,0.00019836,2]
[367275678,1750726244582,-163.58,0.00019836,2]
[367275679,1750726244591,-460.0,0.00019836,2]
[367275680,1750726244600,-2557.08,0.00019836,2]
[367275681,1750726244609,-460.0,0.00019836,2]
[367275682,1750726244618,-795.28,0.00019836,2]
[367275683,1750726244628,-505.67,0.00019836,2]
[367275684,1750726244637,-467.26,0.00019836,2]
[367275685,1750726244647,-2295.2,0.00019836,2]
[367275686,1750726244656,-1461.57,0.00019836,2]
[367275687,1750726244665,-3636.45,0.00019836,2]
[367275688,1750726244674,-621.3,0.00019836,2]
[367275689,1750726244684,-1199.55,0.00019836,2]
[367275690,1750726244693,-460.0,0.00019836,2]
[367275691,1750726244704,-166.52,0.00019837,2]
[367275692,1750726244809,-460.0,0.00019837,2]
[367275693,1750726244819,-599.49,0.00019837,2]
[367275694,1750726244829,-460.0,0.00019837,2]
[367275695,1750726244838,-460.0,0.00019837,2]
[367275696,1750726244847,-460.0,0.00019837,2]
[367275697,1750726244856,-460.0,0.00019837,2]
[367275698,1750726244866,-355.15,0.00019837,2]
[367275699,1750726244875,-500.0,0.00019837,2]
[367275700,1750726244885,-649.71,0.00019837,2]
[367275701,1750726244894,-460.0,0.00019837,2]
[367275702,1750726244903,-460.0,0.00019837,2]
[367275703,1750726244913,-460.0,0.00019837,2]
[367275704,1750726244922,-269.72,0.00019837,2]
[367275705,1750726244931,-460.0,0.00019837,2]
[367275706,1750726244942,-325.74406051,0.00019837,2]
[367275707,1750726244953,-503.42,0.00019837,2]
[367275708,1750726244963,-677.32,0.00019837,2]
[367275709,1750726244972,-460.0,0.00019837,2]
[367275710,1750726244981,-460.0,0.00019837,2]
[367275711,1750726244990,-460.0,0.00019837,2]
[367275712,1750726244998,-460.0,0.00019837,2]
[367275713,1750726245007,-460.0,0.00019837,2]
[367275714,1750726245016,-460.0,0.00019837,2]
[367275715,1750726245025,-460.0,0.00019837,2]
[367275716,1750726245034,-460.0,0.00019837,2]
[367275717,1750726245043,-460.0,0.00019837,2]
[367275718,1750726245052,-522.88,0.00019837,2]
[367275719,1750726245061,-460.0,0.00019837,2]
[367275720,1750726245070,-460.0,0.00019837,2]
[367275721,1750726245079,-460.0,0.00019837,2]
[367275722,1750726245088,-460.0,0.00019837,2]
[367275723,1750726245098,-1092.47,0.00019837,2]
[367275724,1750726245107,-460.0,0.00019837,2]
[367275725,1750726245116,-460.0,0.00019837,2]
[367275726,1750726245125,-460.0,0.00019837,2]
[367275727,1750726245134,-460.0,0.00019837,2]
[367275728,1750726245143,-460.0,0.00019837,2]
[367275729,1750726245152,-460.0,0.00019837,2]
[367275730,1750726245162,-505.98,0.00019837,2]
[367275731,1750726245171,-686.71,0.00019837,2]
[367275732,1750726245183,-1127.47,0.00019837,2]
[367275733,1750726245192,-460.0,0.00019837,2]
[367275734,1750726245202,-824.68,0.00019837,2]
[367275735,1750726245212,-460.0,0.00019837,2]
[367275736,1750726245222,-460.0,0.00019838,2]
[367275737,1750726245231,-460.0,0.00019838,2]
[367275738,1750726245241,-460.0,0.00019841,2]
[367275739,1750726245251,-460.0,0.00019841,2]
[367275740,1750726245261,-460.0,0.00019841,2]
[367275741,1750726245270,-460.0,0.00019841,2]
[367275742,1750726245279,-460.0,0.00019841,2]
[367275743,1750726245288,-460.0,0.00019841,2]
[367275744,1750726245298,-460.0,0.00019841,2]
[367275745,1750726245307,-460.0,0.00019841,2]
[367275746,1750726245317,-460.0,0.00019841,2]
[367275747,1750726245326,-316.2,0.00019841,2]
[367275749,1750726245336,-460.0,0.00019842,2]
[367275750,1750726245345,-500.0,0.00019877,2]
[367275751,1750726245356,-500.0,0.00019877,2]
[367275752,1750726245365,-500.0,0.00019877,2]
[367275753,1750726245374,-500.0,0.00019877,2]
[367275755,1750726245384,-500.0,0.00019877,2]
[367275757,1750726245393,-500.0,0.00019877,2]
[367275758,1750726245403,-500.0,0.00019877,2]
[367275759,1750726245413,-500.0,0.00019877,2]
[367275760,1750726245422,-500.0,0.00019896,2]
[367275761,1750726245432,-500.0,0.00019896,2]
[367275762,1750726245441,-500.0,0.00019896,2]
[367275763,1750726245451,-500.0,0.00019903,2]
[367275764,1750726245460,-500.0,0.00019903,2]
[367275765,1750726245469,-440.36417818,0.00019917,2]
[367275766,1750726245478,-503.14017611,0.00019919,2]
[367275767,1750726245488,-500.0,0.00019929,2]
[367275768,1750726245497,-414.59811191,0.0001993,2]
[367275769,1750726245506,-244.4534282,0.00019935,2]
[367275770,1750726245516,-1861.684128,0.00019983,2]
[367275771,1750726245525,-100000.0,0.0001999,2]
[367275772,1750726245536,-365.8891638,0.0002,2]
[367275773,1750726245545,-365.8891638,0.0002,2]
[367275774,1750726245555,-365.8891638,0.0002,2]
[367275775,1750726245564,-151.0,0.0002,4]
[367275776,1750726245574,-151.0,0.000201,3]
[367275777,1750726245584,-316.39535189,0.00020107,2]
[367275778,1750726245593,-460.0,0.00020107,2]
[367275779,1750726245603,-460.0,0.00020107,2]
[367275780,1750726245612,-161.2,0.00020108,2]
[367275781,1750726245622,-460.0,0.00020108,2]
[367275782,1750726245633,-460.0,0.00020108,2]
[367275783,1750726245643,-2676.44,0.00020108,2]
[367275784,1750726245654,-460.0,0.00020108,2]
[367275785,1750726245664,-512.5,0.00020108,2]
[367275786,1750726245674,-460.0,0.00020108,2]
[367275787,1750726245683,-1568.67,0.00020108,2]
[367275788,1750726245692,-460.0,0.00020108,2]
[367275789,1750726245702,-2061.15,0.00020108,2]
[367275790,1750726245712,-316.66,0.00020108,2]
[367275791,1750726245720,-510.95,0.00020108,2]
[367275792,1750726245730,-460.0,0.00020108,2]
[367275793,1750726245739,-3713.34,0.00020108,2]
[367275795,1750726245748,-477.08,0.00020108,2]
[367275797,1750726245757,-460.0,0.00020108,2]
[367275798,1750726245766,-460.0,0.00020108,2]
[367275799,1750726245775,-1154.07,0.00020108,2]
[367275800,1750726245783,-613.63,0.00020108,2]
[367275801,1750726245792,-460.0,0.00020108,2]
[367275803,1750726245801,-2122.3,0.00020108,2]
[367275804,1750726245811,-1036.93,0.00020108,2]
[367275805,1750726245821,-363.66,0.00020108,2]
[367275806,1750726245830,-664.47,0.00020108,2]
[367275807,1750726245839,-827.74,0.00020108,2]
[367275808,1750726245848,-2820.01,0.00020108,2]
[367275810,1750726245857,-460.0,0.00020108,2]
[367275811,1750726245866,-571.98,0.00020108,2]
[367275812,1750726245875,-460.0,0.00020108,2]
[367275813,1750726245884,-2277.68,0.00020108,2]
[367275814,1750726245893,-568.73274809,0.00020109,2]
[367275815,1750726245903,-568.73740476,0.00020109,2]
[367275816,1750726245912,-230.53,0.00020109,2]
[367275817,1750726245921,-460.0,0.00020109,2]
[367275818,1750726245930,-423.56,0.00020109,2]
[367275819,1750726245939,-320.63554227,0.00020109,2]
[367275820,1750726245949,-460.0,0.00020109,2]
[367275821,1750726245958,-460.0,0.00020109,2]
[367275822,1750726245967,-510.55,0.00020109,2]
[367275823,1750726245978,-469.1,0.00020109,2]
[367275824,1750726245989,-460.0,0.00020109,2]
[367275825,1750726245999,-460.0,0.00020109,2]
[367275826,1750726246008,-460.0,0.00020109,2]
[367275827,1750726246017,-460.0,0.00020109,2]
[367275828,1750726246027,-679.41,0.00020109,2]
[367275829,1750726246037,-460.0,0.00020109,2]
[367275830,1750726246047,-1004.08,0.00020109,2]
[367275831,1750726246056,-765.94,0.00020109,2]
[367275832,1750726246065,-563.44,0.00020109,2]
[367275833,1750726246076,-467.69,0.00020109,2]
[367275834,1750726246086,-460.0,0.00020109,2]
[367275835,1750726246095,-460.0,0.00020109,2]
[367275836,1750726246105,-578.96,0.00020109,2]
[367275837,1750726246114,-573.67,0.00020109,2]
[367275838,1750726246123,-460.0,0.00020109,2]
[367275839,1750726246131,-460.0,0.00020109,2]
[367275840,1750726246140,-460.0,0.00020109,2]
[367275841,1750726246150,-510.55,0.00020109,2]
[367275842,1750726246159,-641.45,0.00020109,2]
[367275843,1750726246168,-460.0,0.00020109,2]
[367275844,1750726246177,-460.0,0.00020109,2]
[367275845,1750726246198,-460.0,0.00020109,2]
[367275846,1750726246218,-460.0,0.00020109,2]
[367275847,1750726246228,-460.0,0.00020109,2]
[367275848,1750726246238,-792.7,0.00020109,2]
[367275849,1750726246247,-558.92,0.00020109,2]
[367275850,1750726246256,-744.72,0.00020109,2]
[367275851,1750726246268,-460.0,0.00020109,2]
[367275852,1750726246276,-460.0,0.00020109,2]
[367275853,1750726246288,-635.78,0.00020109,2]
[367275854,1750726246298,-6285.8,0.00020109,2]
[367275855,1750726246308,-773.11,0.00020109,2]
[367275856,1750726246318,-601.9,0.00020109,2]
[367275857,1750726246327,-460.0,0.00020109,2]
[367275858,1750726246337,-460.0,0.00020109,2]
[367275859,1750726246348,-686.65,0.00020109,2]
[367275860,1750726246358,-460.0,0.00020109,2]
[367275861,1750726246367,-902.81,0.00020109,2]
[367275862,1750726246377,-460.0,0.0002011,2]
[367275863,1750726246387,-588.16,0.0002011,2]
[367275864,1750726246396,-460.0,0.0002011,2]
[367275865,1750726246406,-282.62713042,0.0002011,2]
[367275866,1750726246415,-460.0,0.0002011,2]
[367275867,1750726246424,-460.0,0.0002011,2]
[367275868,1750726246433,-601.66,0.0002011,2]
[367275869,1750726246442,-460.0,0.0002011,2]
[367275870,1750726246451,-460.0,0.0002011,2]
[367275871,1750726246461,-524.73,0.0002011,2]
[367275872,1750726246470,-2475.36,0.0002011,2]
[367275873,1750726246480,-460.0,0.0002011,2]
[367275874,1750726246489,-923.78,0.0002011,2]
[367275875,1750726246498,-460.0,0.0002011,2]
[367275876,1750726246507,-746.18,0.0002011,2]
[367275877,1750726246516,-460.0,0.0002011,2]
[367275878,1750726246526,-460.0,0.0002011,2]
[367275879,1750726246535,-2557.08,0.0002011,2]
[367275880,1750726246544,-460.0,0.0002011,2]
[367275881,1750726246553,-795.28,0.0002011,2]
[367275882,1750726246562,-505.67,0.0002011,2]
[367275883,1750726246572,-467.26,0.0002011,2]
[367275884,1750726246581,-2295.2,0.0002011,2]
[367275885,1750726246590,-1461.57,0.0002011,2]
[367275886,1750726246599,-3636.45,0.0002011,2]
[367275887,1750726246609,-621.3,0.0002011,2]
[367275888,1750726246619,-151.0,0.0002011,2]
[367275889,1750726246628,-1199.55,0.0002011,2]
[367275890,1750726246637,-151.0,0.0002011,2]
[367275891,1750726246646,-460.0,0.0002011,2]
[367275892,1750726246656,-567.69092065,0.00020111,2]
[367275893,1750726246665,-460.0,0.00020111,2]
[367275894,1750726246674,-460.0,0.00020111,2]
[367275895,1750726246778,-460.0,0.00020111,2]
[367275896,1750726246789,-227.39,0.00020111,2]
[367275897,1750726246798,-649.71,0.00020111,2]
[367275898,1750726246808,-460.0,0.00020111,2]
[367275899,1750726246817,-460.0,0.00020111,2]
[367275900,1750726246826,-460.0,0.00020111,2]
[367275901,1750726246835,-460.0,0.00020111,2]
[367275902,1750726246844,-677.32,0.00020111,2]
[367275903,1750726246853,-460.0,0.00020111,2]
[367275904,1750726246863,-460.0,0.00020111,2]
[367275905,1750726246872,-399.07,0.00020111,2]
[367275906,1750726246882,-200.94,0.00020111,2]
[367275907,1750726246891,-292.08,0.00020111,2]
[367275908,1750726246900,-460.0,0.00020111,2]
[367275909,1750726246909,-460.0,0.00020111,2]
[367275910,1750726246919,-460.0,0.00020111,2]
[367275911,1750726246929,-460.0,0.00020111,2]
[367275912,1750726246938,-522.88,0.00020111,2]
[367275913,1750726246948,-460.0,0.00020111,2]
[367275914,1750726246958,-460.0,0.00020111,2]
[367275915,1750726246968,-460.0,0.00020111,2]
[367275916,1750726246977,-460.0,0.00020111,2]
[367275917,1750726246986,-1092.47,0.00020111,2]
[367275918,1750726246996,-460.0,0.00020111,2]
[367275919,1750726247005,-460.0,0.00020111,2]
[367275920,1750726247014,-460.0,0.00020111,2]
[367275921,1750726247024,-460.0,0.00020111,2]
[367275922,1750726247033,-460.0,0.00020111,2]
[367275923,1750726247042,-460.0,0.00020111,2]
[367275924,1750726247052,-505.98,0.00020111,2]
[367275925,1750726247061,-686.71,0.00020111,2]
[367275926,1750726247070,-1127.47,0.00020111,2]
[367275927,1750726247080,-460.0,0.00020111,2]
[367275928,1750726247089,-824.68,0.00020111,2]
[367275929,1750726247098,-460.0,0.00020111,2]
[367275930,1750726247107,-460.0,0.00020112,2]
[367275931,1750726247117,-460.0,0.00020112,2]
[367275932,1750726247126,-460.0,0.00020115,2]
[367275933,1750726247135,-430.57,0.00020115,2]
[367275934,1750726247144,-514.4684472,0.00020115,2]
[367275935,1750726247153,-460.0,0.00020115,2]
[367275936,1750726247163,-460.0,0.00020115,2]
[367275937,1750726247172,-460.0,0.00020115,2]
[367275938,1750726247184,-460.0,0.00020115,2]
[367275939,1750726247195,-460.0,0.00020115,2]
[367275940,1750726247205,-460.0,0.00020115,2]
[367275941,1750726247215,-460.0,0.00020116,2]
[367275942,1750726247224,-177.3437282,0.00020134,2]
[367275943,1750726247234,-179.44514126,0.00020149,2]
[367275944,1750726247244,-414.59811191,0.00020169,2]
[367275945,1750726247253,-168.0,0.00020169,2]
[367275946,1750726247263,-151.0,0.0002017,2]
[367275947,1750726247272,-151.0,0.0002017,2]
[367275948,1750726247282,-151.0,0.0002017,2]
[367275949,1750726247292,-151.0,0.0002017,2]
[367275950,1750726247301,-151.0,0.0002017,2]
[367275951,1750726247312,-265.437993,0.0002017,2]
[367275952,1750726247321,-265.437993,0.0002017,2]
[367275953,1750726247331,-151.0,0.0002017,2]
[367275954,1750726247340,-1688.0,0.0002017,2]
[367275955,1750726247350,-207.4,0.0002017,2]
[367275956,1750726247359,-500.0,0.0002017,2]
[367275957,1750726247370,-500.0,0.0002017,2]
[367275958,1750726247380,-500.0,0.0002017,2]
[367275959,1750726247391,-500.0,0.0002017,2]
[367275960,1750726247402,-500.0,0.0002017,2]
[367275961,1750726247412,-500.0,0.0002017,2]
[367275962,1750726247422,-500.0,0.0002017,2]
[367275963,1750726247431,-500.0,0.0002017,2]
[367275964,1750726247440,-500.0,0.0002017,2]
[367275965,1750726247450,-500.0,0.0002017,2]
[367275966,1750726247459,-500.0,0.0002017,2]
[367275967,1750726247470,-500.0,0.0002017,2]
[367275968,1750726247479,-500.0,0.0002017,2]
[367275969,1750726247489,-500.0,0.0002017,2]
[367275970,1750726247500,-500.0,0.0002017,2]
[367275971,1750726247509,-500.0,0.0002017,2]
[367275972,1750726247518,-500.0,0.0002017,2]
[367275973,1750726247529,-500.0,0.0002017,2]
[367275974,1750726247538,-500.0,0.0002017,2]
[367275975,1750726247548,-500.0,0.0002017,2]
[367275976,1750726247557,-500.0,0.0002017,2]
[367275977,1750726247566,-5000.0,0.0002017,2]
[367275978,1750726247575,-500.0,0.0002017,2]
[367275979,1750726247587,-25000.0,0.0002017,2]
[367275980,1750726247597,-21529.60174738,0.0002017,2]
[367275981,1750726247607,-498.131819,0.00020187,2]
[367275982,1750726247617,-151.0,0.000202,4]
[367275983,1750726247627,-1750.456,0.00020225,2]
[367275984,1750726247637,-151.0,0.00020229,2]
[367275985,1750726247648,-151.0,0.00020229,2]
[367275986,1750726247657,-151.0,0.00020229,2]
[367275987,1750726247667,-151.0,0.00020229,2]
[367275988,1750726247677,-151.0,0.00020229,2]
[367275989,1750726247685,-234.833892,0.00020229,2]
[367275990,1750726247695,-234.833892,0.00020229,2]
[367275991,1750726247707,-170.504754,0.00020229,2]
[367275992,1750726247716,-170.504754,0.00020229,2]
[367275993,1750726247726,-155.3754327,0.00020242,2]
[367275994,1750726247735,-2869.55478476,0.00020264,2]
[367275995,1750726247744,-151.0,0.00020277,2]
[367275996,1750726247754,-159.567896,0.00020277,2]
[367275997,1750726247763,-159.567896,0.00020277,2]
[367275998,1750726247784,-1815.222872,0.0002028,2]
[367275999,1750726247794,-500.0,0.00020292,2]
[367276000,1750726247803,-151.0,0.000203,3]
[367276001,1750726247813,-1882.38611826,0.00020335,2]
[367276002,1750726247823,-600.0,0.00020339,2]
[367276003,1750726247833,-581.53278349,0.00020381,2]
[367276004,1750726247842,-2093.47257819,0.00020381,2]
[367276005,1750726247851,-164063.52828065,0.00020381,2]
[367276006,1750726248170,-460.0,0.00019559,2]
[367276007,1750726248182,-1462.051547,0.00019562,2]
[367276008,1750726248198,-819.578453,0.00019562,2]
[367276009,1750726248209,-460.0,0.00019833,2]
[367276010,1750726248219,-2281.63,0.00019836,2]
[367276011,1750726248229,-428.791547,0.00020107,2]
[367276012,1750726248799,-342.05759261,0.00019286,2]
[367276013,1750726249048,-117.94240739,0.00019286,2]
[367276014,1750726249057,-525.2,0.00019286,2]
[367276015,1750726249067,-496.54800397,0.00019286,2]
[367276016,1750726340329,-221.95243048,0.00019187,2]
[367276017,1750726393653,150.0,0.00024,30]
[367276018,1750726394953,8558.4469825,0.00018287,2]
[367276019,1750726394978,16341.5530175,0.00018287,2]
[367276020,1750726414592,162.0,0.00019,2]
[367276021,1750726415512,162.0,0.00019,2]
[367276022,1750726415987,162.0,0.00019,2]
[367276023,1750726416520,162.0,0.00019,2]
[367276024,1750726418972,162.0,0.00019,2]
[367276025,1750726439653,162.0,0.00019,3]
[367276026,1750726440439,162.0,0.00019,3]
[367276027,1750726441053,162.0,0.00019,3]
[367276028,1750726450988,162.0,0.00019,2]
[367276029,1750726454497,-260.71756952,0.00019178,2]
[367276030,1750726630773,1000.0,0.00024,30]
[367276031,1750726663798,-181.27647748,0.00019178,2]
[367276032,1750726663822,-40.05109204,0.00019178,2]
[367276033,1750726815843,-235.78494141,0.00019178,2]
[367276035,1750726842816,156.65824559,0.00018867,2]
[367276036,1750726877162,54715.99272143,0.00026189,60]
[367276037,1750726906018,243.7584,0.00018281,2]
[367276038,1750726933306,208.6343557,0.00018281,2]
[367276039,1750727039206,460.838078,0.00013699,2]
[367276041,1750727145870,317.98694302,0.00018753,2]
[367276042,1750727227091,-2378.32944961,0.00019178,2]
[367276043,1750727251094,-1063.80245074,0.00019178,2]
[367276044,1750727251113,-57.9454179,0.00019272,2]
[367276064,1750727432145,-788.31885564,0.00019181,2]
[367276065,1750727432155,-103.5145821,0.00019272,2]
[367276066,1750727432165,-1688.0,0.00019272,2]
[367276067,1750727432175,-207.4,0.00019272,2]
[367276069,1750727432184,-1200.0,0.00019276,2]
[367276070,1750727432195,-410.15,0.00019277,3]
[367276071,1750727432205,-300.0,0.00019277,2]
[367276072,1750727432214,-300.0,0.00019277,2]
[367276073,1750727432223,-300.0,0.00019277,2]
[367276074,1750727432234,-300.0,0.00019277,2]
[367276075,1750727432243,-300.0,0.00019277,2]
[367276076,1750727432253,-460.0,0.00019278,2]
[367276077,1750727432262,-460.0,0.00019278,2]
[367276078,1750727432271,-460.0,0.00019278,2]
[367276079,1750727432280,-500.0,0.00019278,2]
[367276080,1750727432289,-500.0,0.00019278,2]
[367276081,1750727432298,-500.0,0.00019278,2]
[367276082,1750727432308,-500.0,0.00019278,2]
[367276083,1750727432318,-205.43632096,0.00019278,2]
[367276084,1750727432327,-423.85816638,0.00019278,2]
[367276085,1750727432336,-500.0,0.00019278,2]
[367276086,1750727432346,-500.0,0.00019278,2]
[367276087,1750727432355,-500.0,0.00019278,2]
[367276088,1750727432364,-93.77158776,0.00019278,2]
[367276126,1750727438134,-500.0,0.00019277,2]
[367276128,1750727438144,-500.0,0.00019277,2]
[367276130,1750727438153,-500.0,0.00019277,2]
[367276132,1750727438162,-235.78494141,0.00019277,2]
[367276134,1750727438171,-500.0,0.00019277,2]
[367276136,1750727438181,-500.0,0.00019277,2]
[367276138,1750727438191,-420.62432938,0.00019277,2]
[367276140,1750727438200,-500.0,0.00019277,2]
[367276142,1750727438210,-500.0,0.00019277,2]
[367276144,1750727438219,-342.04971305,0.00019277,2]
[367276146,1750727438228,-500.0,0.00019277,2]
[367276148,1750727438237,-500.0,0.00019277,2]
[367276150,1750727438246,-300.0,0.00019277,2]
[367276152,1750727438256,-500.0,0.00019277,2]
[367276154,1750727438265,-500.0,0.00019277,2]
[367276156,1750727438275,-500.0,0.00019277,2]
[367276158,1750727438284,-500.0,0.00019277,2]
[367276160,1750727438293,-212.7351551,0.00019277,2]
[367276162,1750727438302,-500.0,0.00019277,2]
[367276164,1750727438313,-396.6843577,0.00019277,2]
[367276166,1750727438322,-165.60557102,0.00019277,2]
[367276168,1750727438331,-500.0,0.00019277,2]
[367276170,1750727438341,-500.0,0.00019277,2]
[367276172,1750727438351,-500.0,0.00019277,2]
[367276174,1750727438359,-199.9005693,0.00019277,2]
[367276176,1750727438369,-1622.72,0.00019279,3]
[367276178,1750727438379,-811.36,0.00019279,3]